fUST/lending_fUST_20260109
["ID","MTS","AMOUNT","RATE_DAILY","PERIOD"]
[401079292,1767907843162,-319.90179824,0.00025,2]
[401079294,1767907843174,-2430.39543152,0.00025,2]
[401079296,1767907843185,-263.98648147,0.00025,2]
[401079520,1767907845252,-317.01154339,0.00011941,2]
[401079522,1767907845264,-59.96998351,0.00011941,2]
[401079524,1767907845274,-4946.53280676,0.00025,2]
[401079526,1767907845283,-559.59362836,0.00025,15]
[401079528,1767907845292,-2662.11877043,0.00025,2]
[401079530,1767907845301,-2673.80811109,0.00025,2]
[401079532,1767907845310,-20757.85955183,0.00025,2]
[401079534,1767907845319,-10364.0,0.00025,2]
[401079536,1767907845328,-500.0,0.00025,2]
[401079538,1767907845337,-300.0,0.00025,30]
[401079540,1767907845347,-1557.93414873,0.00025,2]
[401079542,1767907845356,-759.14155668,0.00025,2]
[401079544,1767907845365,-579.94263287,0.000252,5]
[401079546,1767907845374,-250.0,0.00025205,2]
[401079548,1767907845383,-250.0,0.00025343,2]
[401079550,1767907845392,-2451.57074059,0.00025355,2]
[401079552,1767907845402,-900.0,0.00025469,3]
[401079554,1767907845411,-1000.0,0.000255,2]
[401079556,1767907845420,-2451.57074059,0.00025533,2]
[401079558,1767907845429,-155.0,0.00025534,17]
[401079560,1767907845438,-164.0,0.000256,7]
[401079562,1767907845447,-1005.37,0.000256,14]
[401079564,1767907845457,-162.94,0.000256,7]
[401079566,1767907845466,-3877.30769697,0.00025663,2]
[401079625,1767907846019,-1122.69230303,0.00025663,2]
[401079626,1767907846029,-15602.58969035,0.000257,3]
[401079627,1767907846040,-3825.72403329,0.000257,3]
[401079822,1767909038215,-578.0,0.00011269,2]
[401079823,1767909038225,-158.57,0.00011559,2]
[401079824,1767909038236,-398.58228263,0.00011981,2]
[401079825,1767909038245,-1201.21771737,0.00012081,2]
[401080447,1767909097637,152.21,8.125e-05,2]
[401080448,1767909098034,190.27,8.706e-05,2]
[401080449,1767909168766,168.47,8.641e-05,2]
[401080450,1767909175335,-202.17,9.217e-05,2]
[401080451,1767909238121,155.74,7.41e-05,2]
[401080452,1767909238519,194.68,7.939e-05,2]
[401080453,1767909238928,233.61,8.468e-05,2]
[401080454,1767909239340,272.55,8.998e-05,2]
[401080455,1767909312735,168.2,8.625e-05,2]
[401080456,1767909327052,-196.24,9.164e-05,2]
[401080457,1767909356528,866.9473,0.00030137,120]
[401080458,1767909463470,-163.77,9.12e-05,2]
[401080479,1767910232361,-552.0,9.413e-05,2]
[401080481,1767910232372,-307.08837396,9.432e-05,2]
[401080482,1767910232381,-58.21728727,9.476e-05,2]
[401080484,1767910232393,-112.27271273,9.476e-05,2]
[401080486,1767910232403,-191.8,0.00010002,2]
[401080488,1767910232412,-213.11,0.00010529,2]
[401080490,1767910232422,-112.11805671,0.00010959,2]
[401080492,1767910232433,-709.4838733,0.00010959,2]
[401080497,1767910232477,-177.39806999,0.00010959,2]
[401080499,1767910232487,-362.36428127,0.00011432,2]
[401080500,1767910232496,-2463.78913837,0.00011836,2]
[401080501,1767910232506,-300.0,0.0001208,2]
[401080502,1767910232515,-8382.73695903,0.00012081,2]
[401080503,1767910232524,-1061.1206352,0.00012701,2]
[401080522,1767910238478,-500.0,0.000127,2]
[401080523,1767910238488,-500.0,0.000127,2]
[401080524,1767910238497,-486.62916375,0.000127,2]
[401080525,1767910238507,-403.26000001,0.000127,2]
[401080526,1767910238516,-1571.70000097,0.00012701,2]
[401080527,1767910238591,-47367.17936383,0.00012701,2]
[401080528,1767910238600,-300.0,0.00012706,2]
[401080529,1767910238610,-300.0,0.00012706,2]
[401080530,1767910238622,-300.0,0.00012706,2]
[401080531,1767910238631,-300.0,0.00012706,2]
[401080532,1767910238641,-300.0,0.00012706,2]
[401080533,1767910238651,-300.0,0.00012706,2]
[401080534,1767910238662,-300.0,0.00012706,2]
[401080535,1767910238671,-300.0,0.00012706,2]
[401080536,1767910238680,-300.0,0.00012706,2]
[401080537,1767910238690,-300.0,0.00012706,2]
[401080538,1767910238700,-300.0,0.00012706,2]
[401080539,1767910238709,-300.0,0.00012706,2]
[401080540,1767910238718,-300.0,0.00012706,2]
[401080541,1767910238727,-300.0,0.00012706,2]
[401080542,1767910238747,-300.0,0.00012706,2]
[401080543,1767910238758,-600.0,0.00012959,2]
[401080544,1767910238768,-151.0,0.00013165,2]
[401080545,1767910238778,-151.0,0.00013165,2]
[401080546,1767910238788,-151.0,0.00013165,2]
[401080547,1767910238798,-260.81071806,0.00013165,2]
[401080548,1767910238807,-420.0,0.0001326,2]
[401080549,1767910238818,-500.0,0.00013273,2]
[401080550,1767910238828,-500.0,0.00013273,2]
[401080551,1767910238838,-512.87309708,0.00013273,2]
[401080552,1767910238848,-500.0,0.00013273,2]
[401080553,1767910238858,-500.0,0.00013273,2]
[401080554,1767910238868,-500.0,0.00013273,2]
[401080555,1767910238877,-510.32213921,0.00013273,2]
[401080556,1767910238887,-500.0,0.00013273,2]
[401080557,1767910238898,-500.0,0.00013273,2]
[401080558,1767910238908,-500.0,0.00013273,2]
[401080559,1767910238918,-501.65991965,0.00013273,2]
[401080560,1767910238927,-500.0,0.00013273,2]
[401080561,1767910238937,-500.0,0.00013273,2]
[401080562,1767910238946,-500.0,0.00013273,2]
[401080563,1767910238956,-500.0,0.00013273,2]
[401080564,1767910238965,-500.0,0.00013273,2]
[401080565,1767910238975,-494.75113985,0.00013273,2]
[401080566,1767910238985,-500.0,0.00013273,2]
[401080567,1767910238995,-500.0,0.00013273,2]
[401080568,1767910239005,-500.0,0.00013273,2]
[401080569,1767910239014,-500.0,0.00013273,2]
[401080570,1767910239024,-500.0,0.00013273,2]
[401080571,1767910239034,-500.0,0.00013273,2]
[401080572,1767910239043,-500.0,0.00013273,2]
[401080573,1767910239053,-501.08308556,0.00013273,2]
[401080574,1767910239062,-500.0,0.00013273,2]
[401080575,1767910239073,-202.16229251,0.00013273,2]
[401080576,1767910239083,-500.0,0.00013273,2]
[401080577,1767910239092,-500.0,0.00013273,2]
[401080578,1767910239102,-500.0,0.00013273,2]
[401080579,1767910239112,-500.0,0.00013273,2]
[401080580,1767910239121,-240.74399382,0.00013273,2]
[401080581,1767910239131,-500.0,0.00013273,2]
[401080582,1767910239140,-417.64018859,0.00013432,2]
[401080583,1767910239150,-300.0,0.00013673,2]
[401080584,1767910239159,-500.0,0.00013699,2]
[401080585,1767910239169,-500.0,0.00013699,2]
[401080586,1767910239179,-500.0,0.00013699,2]
[401080587,1767910239188,-500.0,0.00013699,2]
[401080588,1767910239197,-390.27826644,0.00013699,2]
[401080589,1767910239207,-500.0,0.00013699,2]
[401080590,1767910239225,-500.0,0.00013699,2]
[401080591,1767910239234,-500.0,0.00013699,2]
[401080592,1767910239247,-500.0,0.00013699,2]
[401080593,1767910239256,-500.0,0.00013699,2]
[401080594,1767910239266,-500.0,0.00013699,2]
[401080595,1767910239275,-500.0,0.00013699,2]
[401080596,1767910239284,-428.80611253,0.00013699,2]
[401080597,1767910239293,-500.0,0.00013699,2]
[401080598,1767910239303,-500.0,0.00013699,2]
[401080599,1767910239312,-500.0,0.00013699,2]
[401080600,1767910239321,-500.0,0.00013699,2]
[401080601,1767910239330,-502.96437935,0.00013699,2]
[401080602,1767910239340,-500.0,0.00013699,2]
[401080603,1767910239349,-500.0,0.00013699,2]
[401080604,1767910239359,-500.0,0.00013699,2]
[401080605,1767910239368,-500.0,0.00013699,2]
[401080606,1767910239377,-500.0,0.00013699,2]
[401080607,1767910239387,-518.32057392,0.00013699,2]
[401080608,1767910239396,-500.0,0.00013699,2]
[401080609,1767910239405,-500.0,0.00013699,2]
[401080610,1767910239415,-500.0,0.00013699,2]
[401080611,1767910239424,-500.0,0.00013699,2]
[401080612,1767910239433,-500.0,0.00013699,2]
[401080613,1767910239442,-500.0,0.00013699,2]
[401080614,1767910239452,-500.0,0.00013699,2]
[401080615,1767910239462,-500.0,0.00013699,2]
[401080616,1767910239471,-500.0,0.00013699,2]
[401080617,1767910239481,-500.0,0.00013699,2]
[401080618,1767910239490,-500.0,0.00013699,2]
[401080619,1767910239501,-500.0,0.00013699,2]
[401080620,1767910239510,-500.0,0.00013699,2]
[401080621,1767910239520,-478.35295088,0.00013821,2]
[401080622,1767910239530,-1000.0,0.00013821,2]
[401080623,1767910239539,-1000.0,0.00013821,2]
[401080624,1767910239549,-1000.0,0.00013821,2]
[401080625,1767910239559,-1000.0,0.00013821,2]
[401080626,1767910239568,-1000.0,0.00013821,2]
[401080627,1767910239577,-566.54320047,0.00013821,2]
[401080628,1767910239589,-647.44937683,0.00013821,2]
[401080629,1767910239599,-1000.0,0.00013821,2]
[401080630,1767910239610,-1000.0,0.00013821,2]
[401080631,1767910239625,-1000.0,0.00013821,2]
[401080632,1767910239635,-500.0,0.00013821,2]
[401080633,1767910239646,-1000.0,0.00013821,2]
[401080634,1767910239655,-1000.0,0.00013821,2]
[401080635,1767910239665,-500.0,0.00013821,2]
[401080636,1767910239675,-501.21467235,0.00013821,2]
[401080637,1767910239685,-1000.0,0.00013821,2]
[401080638,1767910239694,-500.0,0.00013821,2]
[401080639,1767910239704,-309.63446453,0.0001397,2]
[401080640,1767910239713,-600.0,0.00014221,2]
[401080641,1767910239723,-500.0,0.00014247,2]
[401080642,1767910239732,-615.04672569,0.00014247,2]
[401080643,1767910239741,-501.33075681,0.00014247,2]
[401080644,1767910239751,-1000.0,0.00014247,2]
[401080645,1767910239760,-1000.0,0.00014247,2]
[401080646,1767910239769,-1000.0,0.00014247,2]
[401080647,1767910239778,-503.14554213,0.00014247,2]
[401080648,1767910239787,-1000.0,0.00014247,2]
[401080649,1767910239796,-1000.0,0.00014247,2]
[401080650,1767910239806,-250.0,0.00014247,2]
[401080651,1767910239816,-1000.0,0.00014247,2]
[401080652,1767910239826,-730.23234032,0.00014247,2]
[401080653,1767910239836,-1000.0,0.00014247,2]
[401080654,1767910239846,-1000.0,0.00014247,2]
[401080655,1767910239855,-1000.68920715,0.00014247,2]
[401080656,1767910239864,-1000.0,0.00014247,2]
[401080657,1767910239874,-1000.0,0.00014247,2]
[401080658,1767910239883,-1000.0,0.00014247,2]
[401080659,1767910239893,-1000.0,0.00014247,2]
[401080660,1767910239902,-482.84709438,0.00014247,2]
[401080662,1767910239911,-1000.0,0.00014247,2]
[401080663,1767910239920,-921.00515568,0.00014247,2]
[401080664,1767910239929,-1000.0,0.00014247,2]
[401080665,1767910239941,-1000.0,0.00014247,2]
[401080666,1767910239951,-1000.0,0.00014247,2]
[401080667,1767910239961,-374.8306527,0.00014247,2]
[401080668,1767910239971,-1000.0,0.00014247,2]
[401080669,1767910239980,-1000.0,0.00014247,2]
[401080670,1767910239989,-1000.0,0.00014247,2]
[401080671,1767910239999,-1000.0,0.00014247,2]
[401080672,1767910240008,-1000.0,0.00014247,2]
[401080673,1767910240018,-1000.0,0.00014247,2]
[401080674,1767910240028,-1000.0,0.00014247,2]
[401080675,1767910240037,-720.0,0.00014255,2]
[401080676,1767910240047,-1190.210437,0.00014255,2]
[401080677,1767910240056,-1174.40739295,0.00014368,2]
[401080678,1767910240066,-1500.0,0.00014368,2]
[401080679,1767910240076,-1500.0,0.00014368,2]
[401080680,1767910240089,-1410.05192145,0.00014368,2]
[401080681,1767910240099,-1500.0,0.00014368,2]
[401080682,1767910240108,-1500.0,0.00014368,2]
[401080683,1767910240117,-1500.0,0.00014368,2]
[401080684,1767910240126,-1500.0,0.00014368,2]
[401080685,1767910240136,-1500.0,0.00014368,2]
[401080686,1767910240145,-1500.0,0.00014368,2]
[401080688,1767910240154,-5000.0,0.0001451,2]
[401080689,1767910240163,-587.0,0.00014555,2]
[401080691,1767910240172,-900.0,0.00014768,2]
[401080694,1767910240182,-161.95893033,0.00014795,2]
[401080695,1767910240191,-1500.0,0.00014795,2]
[401080696,1767910240200,-474.34002557,0.00014795,2]
[401080697,1767910240211,-1500.0,0.00014795,2]
[401080698,1767910240220,-1338.23457806,0.00014795,2]
[401080699,1767910240229,-350.0,0.00014795,2]
[401080700,1767910240239,-1500.0,0.00014795,2]
[401080701,1767910240248,-529.61129365,0.00014795,2]
[401080702,1767910240259,-1500.0,0.00014795,2]
[401080703,1767910240267,-1500.0,0.00014795,2]
[401080704,1767910240277,-1500.0,0.00014795,2]
[401080705,1767910240287,-1094.37321714,0.00014795,2]
[401080706,1767910240296,-1003.80919542,0.00014795,2]
[401080707,1767910240306,-500.0,0.00014795,2]
[401080708,1767910240315,-1500.0,0.00014795,2]
[401080709,1767910240325,-1500.0,0.00014795,2]
[401080710,1767910240335,-1500.0,0.00014795,2]
[401080711,1767910240344,-1504.51727604,0.00014795,2]
[401080712,1767910240353,-1644.01857865,0.00014795,2]
[401080713,1767910240362,-1500.0,0.00014795,2]
[401080714,1767910240371,-1500.0,0.00014795,2]
[401080716,1767910240380,-506.84567032,0.00014795,2]
[401080718,1767910240389,-500.0,0.00014795,2]
[401080720,1767910240398,-2000.0,0.00014916,2]
[401080722,1767910240407,-2000.0,0.00014916,2]
[401080724,1767910240416,-1869.1892099,0.00014916,2]
[401080726,1767910240426,-351.48708989,0.00014916,2]
[401080727,1767910240435,-2000.0,0.00014916,2]
[401080728,1767910240443,-2000.0,0.00014916,2]
[401080729,1767910240452,-2000.0,0.00014916,2]
[401080730,1767910240462,-2000.0,0.00014916,2]
[401080732,1767910240471,-170.598297,0.00015068,2]
[401080734,1767910240480,-800.0,0.00015068,2]
[401080736,1767910240489,-1200.0,0.00015316,2]
[401080738,1767910240498,-1909.51288327,0.00015342,2]
[401080740,1767910240506,-1145.40081224,0.00015342,2]
[401080742,1767910240515,-292.93732994,0.00015342,2]
[401080744,1767910240527,-1546.66896035,0.00015342,2]
[401080746,1767910240536,-2000.0,0.00015342,2]
[401080748,1767910240545,-2000.0,0.00015342,2]
[401080750,1767910240554,-2000.0,0.00015342,2]
[401080752,1767910240562,-2000.0,0.00015342,2]
[401080754,1767910240571,-608.00999349,0.00015342,2]
[401080756,1767910240580,-2000.0,0.00015342,2]
[401080758,1767910240589,-2000.0,0.00015342,2]
[401080761,1767910240604,-634.65901332,0.00015342,2]
[401080763,1767910240621,-1000.0,0.000154,2]
[401080765,1767910240631,-472.9160959,0.00015432,2]
[401080767,1767910240640,-2500.0,0.00015464,2]
[401080769,1767910240649,-2500.0,0.00015464,2]
[401080771,1767910240659,-2500.0,0.00015464,2]
[401080773,1767910240668,-2500.0,0.00015464,2]
[401080775,1767910240677,-2500.0,0.00015464,2]
[401080777,1767910240686,-1396.00511375,0.00015464,2]
[401080779,1767910240697,-864.0,0.00015681,2]
[401080781,1767910240706,-1500.0,0.00015864,2]
[401080783,1767910240716,-2500.0,0.0001589,2]
[401080785,1767910240725,-1086.48750274,0.0001589,2]
[401080787,1767910240734,-2500.0,0.0001589,2]
[401080789,1767910240744,-2500.0,0.0001589,2]
[401080791,1767910240753,-2500.0,0.0001589,2]
[401080793,1767910240763,-2500.0,0.0001589,2]
[401080795,1767910240772,-823.0,0.00015977,2]
[401080797,1767910240781,-431.87152532,0.00015989,2]
[401080799,1767910240791,-910.73318347,0.00015989,2]
[401080801,1767910240800,-910.73318347,0.00015989,2]
[401080803,1767910240809,-910.73318347,0.00015989,2]
[401080805,1767910240818,-910.73318347,0.00015989,2]
[401080807,1767910240827,-910.73318347,0.00015989,2]
[401080809,1767910240836,-910.73318347,0.00015989,2]
[401080811,1767910240846,-910.73318347,0.00015989,2]
[401080814,1767910240855,-910.73318347,0.00015989,2]
[401080816,1767910240865,-910.73318347,0.00015989,2]
[401080818,1767910240876,-910.73318347,0.00015989,2]
[401080820,1767910240886,-910.73318347,0.00015989,2]
[401080822,1767910240897,-910.73318347,0.00015989,2]
[401080823,1767910240907,-910.73318347,0.00015989,2]
[401080826,1767910240916,-910.73318347,0.00015989,2]
[401080828,1767910240925,-910.73318347,0.00015989,2]
[401080830,1767910240935,-100000.0,0.0001599,2]
[401080832,1767910240944,-3000.0,0.00016012,2]
[401080834,1767910240954,-3000.0,0.00016012,2]
[401080836,1767910240963,-2032.8743507,0.00016012,2]
[401080838,1767910240972,-3000.0,0.00016012,2]
[401080840,1767910240981,-3000.0,0.00016012,2]
[401080842,1767910240990,-1600.0,0.00016164,2]
[401080844,1767910241000,-1800.0,0.00016412,2]
[401080846,1767910241010,-500.0,0.00016438,2]
[401080848,1767910241019,-164.10892372,0.00016438,2]
[401080850,1767910241029,-1071.48096018,0.00016438,2]
[401080852,1767910241039,-526.70356569,0.00016438,2]
[401080854,1767910241048,-3000.0,0.00016438,2]
[401080856,1767910241057,-3000.0,0.00016438,2]
[401080858,1767910241066,-3000.0,0.00016438,2]
[401080860,1767910241075,-200.0,0.00016473,2]
[401080862,1767910241084,-3500.0,0.0001656,2]
[401080864,1767910241096,-2498.72100815,0.0001656,2]
[401080866,1767910241105,-3500.0,0.0001656,2]
[401080868,1767910241114,-509.97635533,0.0001656,2]
[401080870,1767910241123,-2100.0,0.0001696,2]
[401080872,1767910241133,-3500.0,0.00016986,2]
[401080874,1767910241141,-3500.0,0.00016986,2]
[401080876,1767910241151,-3500.0,0.00016986,2]
[401080878,1767910241160,-1425.17937214,0.00017108,2]
[401080880,1767910241169,-4000.0,0.00017108,2]
[401080882,1767910241178,-1000.0,0.00017249,2]
[401080884,1767910241187,-2400.0,0.0001726,2]
[401080886,1767910241196,-5000.0,0.00017412,2]
[401080888,1767910241205,-528.19200321,0.00017432,2]
[401080890,1767910241215,-2400.0,0.00017508,2]
[401080892,1767910241224,-4000.0,0.00017534,2]
[401080894,1767910241233,-4000.0,0.00017534,2]
[401080896,1767910241243,-4000.0,0.00017534,2]
[401080898,1767910241251,-1152.0,0.00017538,2]
[401080900,1767910241261,-4500.0,0.00017656,2]
[401080902,1767910241273,-479.78804727,0.00017842,2]
[401080904,1767910241283,-2572.25506652,0.00018056,2]
[401080906,1767910241292,-4500.0,0.00018082,2]
[401080908,1767910241301,-4500.0,0.00018082,2]
[401080910,1767910241311,-4500.0,0.00018082,2]
[401080912,1767910241320,-5000.0,0.00018204,2]
[401080914,1767910241329,-1899.64931956,0.00018356,2]
[401080916,1767910241339,-395.64095761,0.0001863,2]
[401080919,1767910241348,-5000.0,0.0001863,2]
[401080921,1767910241358,-3667.21136956,0.0001863,2]
[401080923,1767910241367,-3531.92126105,0.00018752,2]
[401080925,1767910241377,-4323.22837725,0.00018863,2]
[401080927,1767910241386,-230.19474322,0.00018959,3]
[401080929,1767910241396,-1000.0,0.00018973,2]
[401080931,1767910241405,-244.0,0.00018973,2]
[401080933,1767910241415,-5500.0,0.00019178,2]
[401080935,1767910241426,-17902.14,0.000192,2]
[401080937,1767910241435,-1613.0,0.00019251,2]
[401080939,1767910241445,-164.0,0.000194,2]
[401080941,1767910241455,-167.4,0.000194,2]
[401080943,1767910241464,-162.94,0.000194,2]
[401080945,1767910241474,-904.83,0.000194,2]
[401080947,1767910241483,-583.46791053,0.00019432,2]
[401080949,1767910241492,-170.598297,0.00019635,2]
[401080951,1767910241502,-6000.0,0.00019726,2]
[401080953,1767910241512,-1003.0,0.0002,2]
[401080955,1767910241521,-300.26582625,0.0002,2]
[401080957,1767910241531,-6500.0,0.00020274,2]
[401080959,1767910241540,-419.6,0.00020277,2]
[401080961,1767910241549,-1041.66666667,0.00020533,2]
[401080964,1767910241559,-300.0,0.00020548,5]
[401080966,1767910241568,-7000.0,0.00020822,2]
[401080968,1767910241578,-1000.0,0.00020871,2]
[401080969,1767910241587,-492.0,0.00020871,2]
[401080970,1767910241596,-1543.0,0.00021132,2]
[401080971,1767910241605,-184.0,0.00021151,4]
[401080972,1767910241614,-1005.53140952,0.0002137,2]
[401080973,1767910241627,-305.0,0.0002137,5]
[401080974,1767910241636,-638.74381784,0.00021432,2]
[401080975,1767910241646,-419.6,0.00021454,2]
[401080976,1767910241655,-904.83,0.000215,2]
[401080977,1767910241665,-300.0,0.00021918,5]
[401080978,1767910241674,-250.0,0.00021918,5]
[401080979,1767910241683,-3329.61738907,0.00021918,2]
[401080980,1767910241693,-151.17138734,0.00021918,2]
[401080981,1767910241702,-306.78033091,0.00022,2]
[401080982,1767910241711,-37359.6309449,0.00022,2]
[401080983,1767910241720,-513.56,0.00022,2]
[401080984,1767910241730,-518.09,0.00022,7]
[401080985,1767910241739,-28541.27315998,0.00022,2]
[401080986,1767910241749,-17902.14,0.00022,2]
[401080987,1767910241758,-2000.51544348,0.00022413,2]
[401080988,1767910241767,-419.6,0.0002263,2]
[401080989,1767910241776,-554.95289818,0.00022848,14]
[401080990,1767910241785,-1000.0,0.00022958,10]
[401080991,1767910241795,-791.0,0.00022958,10]
[401080992,1767910241804,-186.0,0.00023342,9]
[401080993,1767910241813,-694.01972515,0.00023432,2]
[401080994,1767910241822,-554.95289818,0.00023779,15]
[401080995,1767910241832,-6800.0,0.000238,2]
[401080996,1767910241841,-419.6,0.00023807,2]
[401080997,1767910241851,-904.83,0.00024,14]
[401080998,1767910241861,-518.09,0.000241,7]
[401080999,1767910241870,-170.598297,0.00024201,2]
[401081000,1767910241879,-160.18626186,0.00024266,2]
[401081002,1767910241888,-513.56,0.000245,2]
[401081004,1767910241897,-17902.14,0.000246,2]
[401081006,1767910241906,-380.0,0.00024658,2]
[401081008,1767910241915,-3207.80244768,0.000247,2]
[401081010,1767910241924,-554.95289818,0.0002471,17]
[401081012,1767910241934,-798.258423,0.00024764,2]
[401081014,1767910241943,-7039.3252095,0.00024764,2]
[401081016,1767910241953,-598.6938173,0.00024764,2]
[401081018,1767910241963,-32324.0191104,0.00024764,2]
[401081020,1767910241972,-1796.0814518,0.00024764,2]
[401081022,1767910241982,-228580.750232,0.000248,2]
[401081044,1767910242168,-209.1906687,0.00024852,2]
[401081046,1767910242179,-151.0,0.000249,7]
[401081048,1767910242188,-1041.66666667,0.000249,7]
[401081050,1767910242198,-151.0,0.000249,7]
[401081052,1767910242207,-298.474692,0.000249,7]
[401081054,1767910242216,-151.0,0.000249,7]
[401081056,1767910242225,-151.0,0.000249,7]
[401081058,1767910242236,-151.0,0.000249,7]
[401081060,1767910242244,-151.0,0.000249,7]
[401081062,1767910242254,-172.705914,0.000249,7]
[401081064,1767910242263,-172.705914,0.000249,7]
[401081066,1767910242272,-172.705914,0.000249,7]
[401081068,1767910242281,-172.705914,0.000249,7]
[401081070,1767910242289,-388.092813,0.000249,7]
[401081072,1767910242299,-388.092813,0.000249,7]
[401081074,1767910242308,-388.092813,0.000249,7]
[401081076,1767910242318,-388.092813,0.000249,7]
[401081078,1767910242327,-151.0,0.000249,7]
[401081080,1767910242337,-151.0,0.000249,7]
[401081082,1767910242346,-622.20825,0.000249,7]
[401081085,1767910242357,-622.20825,0.000249,7]
[401081087,1767910242366,-622.20825,0.000249,7]
[401081089,1767910242375,-622.20825,0.000249,7]
[401081091,1767910242384,-262.112916,0.000249,7]
[401081093,1767910242394,-522.121584,0.000249,7]
[401081095,1767910242403,-522.121584,0.000249,7]
[401081097,1767910242412,-522.121584,0.000249,7]
[401081099,1767910242421,-522.121584,0.000249,7]
[401081101,1767910242430,-151.0,0.000249,7]
[401081103,1767910242440,-151.0,0.000249,7]
[401081105,1767910242450,-151.0,0.000249,7]
[401081107,1767910242459,-204.572095,0.000249,7]
[401081109,1767910242468,-204.572095,0.000249,7]
[401081111,1767910242477,-204.572095,0.000249,7]
[401081113,1767910242486,-204.572095,0.000249,7]
[401081115,1767910242495,-151.0,0.000249,7]
[401081117,1767910242505,-637582.872583,0.000249,2]
[401081119,1767910242514,-757.340513,0.000249,7]
[401081121,1767910242524,-757.340513,0.000249,7]
[401081123,1767910242533,-757.340513,0.000249,7]
[401081125,1767910242542,-757.340513,0.000249,7]
[401081127,1767910242552,-273.059252,0.000249,7]
[401081129,1767910242562,-273.059252,0.000249,7]
[401081131,1767910242571,-248.949077,0.000249,7]
[401081133,1767910242581,-273.059252,0.000249,7]
[401081135,1767910242591,-248.949077,0.000249,7]
[401081137,1767910242599,-273.059252,0.000249,7]
[401081139,1767910242609,-248.949077,0.000249,7]
[401081141,1767910242619,-248.949077,0.000249,7]
[401081144,1767910242629,-209.694433,0.000249,7]
[401081146,1767910242639,-151.0,0.000249,7]
[401081148,1767910242648,-151.0,0.000249,7]
[401081150,1767910242657,-151.0,0.000249,7]
[401081152,1767910242666,-151.0,0.000249,7]
[401081154,1767910242676,-151.0,0.000249,7]
[401081156,1767910242685,-151.0,0.000249,7]
[401081157,1767910242695,-151.0,0.000249,7]
[401081159,1767910242704,-151.0,0.000249,7]
[401081162,1767910242714,-1222.595979,0.000249,7]
[401081164,1767910242723,-1222.595979,0.000249,7]
[401081166,1767910242732,-1222.595979,0.000249,7]
[401081168,1767910242741,-1222.595979,0.000249,7]
[401081170,1767910242750,-151.0,0.000249,2]
[401081172,1767910242759,-151.0,0.000249,7]
[401081174,1767910242768,-151.0,0.000249,7]
[401081176,1767910242777,-179.188398,0.000249,7]
[401081178,1767910242786,-151.0,0.000249,7]
[401081180,1767910242795,-2391.210697,0.000249,7]
[401081182,1767910242804,-151.58214,0.000249,7]
[401081184,1767910242814,-2391.210697,0.000249,7]
[401081186,1767910242823,-2391.210697,0.000249,7]
[401081188,1767910242832,-2391.210697,0.000249,7]
[401081190,1767910242841,-151.0,0.000249,7]
[401081192,1767910242850,-163.687249,0.000249,7]
[401081194,1767910242859,-151.0,0.000249,7]
[401081196,1767910242868,-163.687249,0.000249,7]
[401081198,1767910242877,-151.0,0.000249,7]
[401081200,1767910242887,-163.687249,0.000249,7]
[401081202,1767910242896,-163.687249,0.000249,7]
[401081204,1767910242905,-151.0,0.000249,7]
[401081206,1767910242914,-151.0,0.000249,7]
[401081208,1767910242923,-151.0,0.000249,7]